bitfinex-derivatives/quotes_ETHF0:USTF0_20260303
["timestamp","ask_amount","ask_price","bid_price","bid_amount"]
[1772556533688,5.9214756,1982.1,1981.3,2.38386965]
[1772556534187,2.63007742,1982.0,1981.3,0.25623768]
[1772556534391,2.63007742,1982.0,1981.3,0.00388768]
[1772556534689,0.0059206,1982.2,1981.3,2.10583143]
[1772556534885,5.9214756,1982.1,1981.5,2.10757596]
[1772556535086,2.63007742,1982.0,1981.3,0.00388768]
[1772556535278,5.9214756,1982.1,1981.3,2.36380364]
[1772556535483,3.81727659,1982.1,1981.4,2.10432834]
[1772556535884,0.0059206,1982.2,1981.5,6.45951]
[1772556536191,2.96610958,1982.9,1981.8,0.25227]
[1772556536494,2.96610958,1982.9,1981.8,6.87027]
[1772556536680,3.81727659,1982.8,1981.8,13.07646]
[1772556536886,3.81727659,1982.8,1981.9,0.01923132]
[1772556537082,3.81727659,1982.8,1982.1,0.01923132]
[1772556537287,3.82300181,1982.8,1982.2,0.27146132]
[1772556537591,2.95561578,1983.4,1982.5,0.16499243]
[1772556537790,2.95561578,1983.4,1982.3,6.617]
[1772556537990,2.95561578,1983.4,1982.3,6.78600971]
[1772556538193,2.95360714,1983.2,1982.3,6.617]
[1772556538691,2.95360714,1983.0,1982.0,0.16900971]
[1772556538894,3.81727659,1983.1,1982.4,0.16676281]
[1772556539190,0.00558981,1983.2,1982.5,0.16135683]
[1772556539386,3.8228664,1983.2,1982.5,0.16135683]
[1772556539586,2.95631013,1983.6,1982.6,0.15945835]
[1772556539789,6.77638162,1983.5,1982.6,0.15945835]
[1772556539987,6.77638162,1983.5,1982.8,0.15374329]
[1772556540195,3.81727659,1983.5,1983.0,0.15374329]
[1772556540586,2.95916766,1983.4,1982.5,0.15762699]
[1772556540786,3.82224448,1983.5,1982.7,0.15762699]
[1772556540984,6.78649068,1983.5,1982.8,0.25216]
[1772556541185,6.78649068,1983.5,1982.5,0.14124505]
[1772556541690,3.82224448,1983.5,1983.0,0.13925849]
[1772556541890,0.00496789,1983.5,1983.0,0.13925849]
[1772556542691,6.78655355,1983.5,1982.9,6.86614]
[1772556542894,2.96430907,1983.4,1982.6,6.613]
[1772556543094,2.96430907,1983.4,1982.5,0.00359457]
[1772556543294,2.98238032,1983.2,1982.5,0.00359457]
[1772556543490,2.98238032,1983.1,1982.0,6.613]
[1772556544191,2.98238032,1983.1,1981.7,0.25229]
[1772556544192,2.98245095,1982.9,1981.7,6.613]
[1772556544496,2.98245095,1982.9,1981.7,0.00646894]
[1772556544697,2.98245095,1982.7,1981.7,0.00646894]
[1772556544891,2.98245095,1982.5,1981.7,0.00646894]
[1772556545495,2.9891303,1982.3,1981.7,0.00646894]
[1772556545997,6.80646974,1982.2,1981.7,0.00646894]
[1772556546196,2.98919315,1982.5,1981.7,0.00646894]
[1772556546798,6.80646974,1982.4,1981.7,0.00646894]
[1772556546998,2.97584646,1982.3,1981.7,0.00646894]
[1772556547394,2.97584646,1982.1,1981.0,0.25238]
[1772556547693,2.97584646,1982.0,1981.0,0.25238]
[1772556548091,2.97592354,1981.8,1981.0,0.25238]
[1772556548289,2.98104366,1981.8,1981.0,0.00618084]
[1772556548689,2.97592354,1981.6,1981.0,0.00618084]
[1772556549093,2.84887539,1981.4,1980.4,0.35179272]
[1772556549300,2.84887539,1981.4,1979.9,0.60331426]
[1772556549495,3.10123539,1981.2,1979.9,0.25252]
[1772556549797,2.84887539,1981.0,1979.9,0.25252]
[1772556549996,2.84901111,1980.8,1979.4,0.60338426]
[1772556550198,2.84901111,1980.8,1979.4,0.25696919]
[1772556550396,2.84901111,1980.6,1979.4,0.25696919]
[1772556550697,6.6662877,1980.7,1979.8,0.34824382]
[1772556550903,2.84901111,1980.6,1979.5,0.34824382]
[1772556551103,2.84901111,1980.6,1979.7,0.25255]
[1772556551596,2.80698363,1980.4,1979.4,0.00437919]
[1772556551802,9.42619197,1980.4,1979.4,0.00437919]
[1772556551997,3.81727659,1980.3,1979.6,0.42925359]
[1772556552192,2.80714136,1980.2,1979.4,0.00437919]
[1772556552399,2.80495177,1980.0,1978.9,0.25264]
[1772556552698,2.80495177,1980.0,1978.9,0.25265]
[1772556553003,6.62222836,1979.9,1979.1,0.25263]
[1772556553204,2.75779153,1979.8,1979.1,0.25263]
[1772556553410,2.75779153,1979.8,1979.1,0.25833011]
[1772556553900,2.75779153,1979.8,1979.1,0.00570011]
[1772556554103,2.75795665,1979.6,1979.1,0.00570011]
[1772556554294,2.75795665,1979.5,1978.5,0.25269]
[1772556554497,2.75795665,1979.4,1978.5,0.25269]
[1772556555002,2.75795665,1979.2,1978.5,0.25269]
[1772556555200,2.75795665,1979.2,1977.8,7.39310243]
[1772556555404,2.75503099,1979.0,1978.2,0.52910538]
[1772556555703,2.76124552,1979.0,1978.2,0.52910538]
[1772556555904,2.75519556,1978.8,1978.2,0.00627358]
[1772556556406,2.75519556,1978.6,1977.8,6.86778]
[1772556556607,2.75519556,1978.8,1978.1,0.51957973]
[1772556556802,2.75519556,1978.8,1978.0,0.25277]
[1772556557004,2.75294388,1978.6,1977.5,6.9966831]
[1772556557303,2.75294388,1978.6,1977.6,0.5240831]
[1772556557506,6.57022047,1978.5,1977.6,0.52792978]
[1772556557706,13.18622047,1978.8,1977.8,0.52113068]
[1772556557902,2.8110728,1978.7,1977.8,0.52113068]
[1772556558505,2.8110728,1978.5,1977.7,0.25281]
[1772556558803,2.8110728,1978.5,1977.1,0.25288]
[1772556558804,2.8110728,1978.4,1977.1,0.25288]
[1772556559002,2.8110728,1978.3,1977.1,0.78211135]
[1772556559803,2.8110728,1978.3,1977.1,0.78755165]
[1772556560103,2.96510251,1978.1,1977.1,0.0054403]
[1772556560308,2.96510251,1977.9,1976.5,0.73686784]
[1772556560507,2.96510251,1977.9,1976.5,0.25295]
[1772556560704,2.96510251,1977.7,1976.7,6.96155377]
[1772556560902,2.96510251,1977.7,1976.8,0.48643377]
[1772556561102,2.96510251,1977.5,1976.8,0.48643377]
[1772556561302,2.97130484,1977.5,1976.8,0.49066927]
[1772556561502,2.96510251,1977.8,1977.0,0.50015215]
[1772556561701,0.25271,1978.5,1976.9,6.47455]
[1772556561702,2.96510251,1978.1,1977.2,0.50015215]
[1772556562008,2.96510251,1978.1,1977.3,0.25286]
[1772556562402,2.96510251,1977.9,1977.3,0.25286]
[1772556562605,0.00529595,1977.9,1977.4,0.49650972]
[1772556563003,2.96510251,1979.2,1977.6,0.52682753]
[1772556563303,2.96510251,1978.6,1977.2,6.62]
[1772556563509,2.96510251,1978.4,1977.2,6.62]
[1772556563709,2.96510251,1978.2,1977.3,0.77785926]
[1772556564208,3.80239425,1978.1,1977.4,0.52475477]
[1772556564399,2.96510251,1978.0,1977.3,0.25286]
[1772556564605,3.80239425,1978.1,1977.5,0.25283]
[1772556564804,0.00508446,1978.2,1977.5,6.9943941]
[1772556565010,2.96510251,1979.6,1978.0,0.37426364]
[1772556565210,2.96510251,1978.9,1978.1,0.25276]
[1772556565912,2.96510251,1978.7,1978.1,0.25276]
[1772556566506,0.2669617,1978.6,1978.2,0.40488367]
[1772556566813,0.2669617,1978.8,1978.2,0.00634706]
[1772556567010,3.23206421,1978.8,1978.2,0.00634706]
[1772556567610,0.00374662,1978.9,1976.9,6.22167]
[1772556567611,2.96510251,1978.6,1976.9,6.22167]
[1772556567809,2.96510251,1978.4,1977.2,6.47356]
[1772556568007,2.96510251,1978.4,1977.3,2.84894382]
[1772556568204,3.23206421,1978.3,1977.6,3.10176382]
[1772556568411,2.96510251,1978.6,1977.7,2.84894382]
[1772556568714,0.2669617,1978.5,1977.8,3.10173382]
[1772556568910,3.23206421,1978.5,1977.8,3.10173382]
[1772556569615,0.2669617,1978.5,1977.8,3.10173382]
[1772556570214,0.2669617,1978.5,1978.0,0.25277]
[1772556570417,0.2669617,1978.5,1978.0,3.10171382]
[1772556570607,0.00374662,1978.9,1978.2,3.10168382]
[1772556570813,2.96884913,1978.9,1978.2,3.10168382]
[1772556571013,2.96884913,1978.9,1978.2,0.25274]
[1772556571415,2.96884913,1978.9,1978.2,3.10168382]
[1772556571811,0.00374662,1978.9,1978.2,3.10168382]
[1772556572808,2.96510251,1979.4,1978.5,2.84894382]
[1772556573011,2.96510251,1979.4,1978.6,3.10163382]
[1772556573210,2.96510251,1979.4,1978.6,0.25269]
[1772556573616,2.96510251,1979.4,1978.6,3.10163382]
[1772556573807,2.97162243,1979.4,1978.6,3.10163382]
[1772556574213,2.97162243,1979.4,1978.6,0.25269]
[1772556575312,2.97162243,1979.4,1978.3,2.84894382]
[1772556575522,2.97162243,1979.4,1978.6,3.10163382]
[1772556576918,0.00651992,1979.4,1978.8,3.10161382]
[1772556577211,0.00651992,1979.4,1978.4,6.622]
[1772556577212,2.97162243,1979.4,1978.4,6.622]
[1772556577412,2.97162243,1979.4,1978.2,2.84894382]
[1772556577608,2.97162243,1979.4,1978.1,6.622]
[1772556577813,2.96510251,1979.2,1977.8,3.10173382]
[1772556578218,2.96510251,1979.0,1977.8,0.25279]
[1772556578618,2.96510251,1979.0,1977.8,3.10173382]
[1772556579115,2.96510251,1979.0,1977.8,0.25279]
[1772556579514,2.96510251,1979.0,1977.7,0.00435461]
[1772556580420,2.96510251,1979.0,1977.7,3.10609843]
[1772556580612,2.96510251,1979.0,1977.9,3.10172382]
[1772556581120,2.96510251,1979.0,1978.0,2.84894382]
[1772556581319,2.96510251,1979.0,1978.1,3.10170382]
[1772556581818,2.96510251,1979.0,1977.7,0.00435461]
[1772556582021,2.96510251,1979.0,1977.7,2.85329843]
[1772556584120,2.96510251,1978.9,1977.7,2.85329843]
[1772556584521,2.96510251,1978.9,1977.8,3.10173382]
[1772556584717,2.96510251,1979.3,1978.2,3.10168382]
[1772556585016,2.96510251,1979.3,1978.4,3.10166382]
[1772556585323,0.00651992,1979.4,1978.6,3.10163382]
[1772556585719,0.00651992,1979.4,1978.8,3.10161382]
[1772556585918,2.96510251,1980.1,1979.1,2.84894382]
[1772556586115,2.96510251,1980.1,1979.2,3.10155382]
[1772556586325,2.96510251,1980.1,1979.3,2.84894382]
[1772556586624,2.96510251,1980.3,1979.4,3.10153382]
[1772556586821,2.96510251,1980.8,1979.5,2.84894382]
[1772556587020,2.96510251,1980.9,1979.9,2.84894382]
[1772556587218,2.96510251,1980.9,1980.1,2.84894382]
[1772556587414,2.96510251,1980.9,1980.0,6.87551]
[1772556587619,2.96510251,1980.9,1980.1,2.84894382]
[1772556587818,2.96510251,1980.9,1980.0,6.623]
[1772556588020,2.96965855,1980.9,1980.0,6.623]
[1772556588421,2.96965855,1980.9,1979.8,2.84894382]
[1772556588620,2.96965855,1980.9,1979.7,6.623]
[1772556588923,3.11033052,1980.7,1979.8,3.10005996]
[1772556589422,3.11033052,1980.7,1979.4,3.35662612]
[1772556589615,3.11033052,1980.7,1979.7,3.10005996]
[1772556589821,3.11033052,1980.7,1979.8,3.35259996]
[1772556591029,3.11033052,1980.7,1979.8,0.25254]
[1772556591724,3.11033052,1980.7,1979.8,3.35259996]
[1772556591922,0.00455604,1980.9,1980.3,3.10005996]
[1772556592722,3.11033052,1981.3,1980.3,3.10005996]
[1772556592918,3.11033052,1981.3,1980.5,3.10005996]
[1772556593216,3.11033052,1981.6,1980.7,3.10005996]
[1772556593422,3.11033052,1981.6,1980.7,6.62]
[1772556593622,3.11549269,1981.6,1980.4,9.72005996]
[1772556593927,3.11033052,1981.4,1980.0,3.35255996]
[1772556594127,3.11033052,1981.4,1979.9,6.62]
[1772556594128,3.36268052,1981.3,1979.9,6.62]
[1772556594329,3.11033052,1981.1,1979.9,9.72005996]
[1772556595326,3.11033052,1981.1,1980.0,3.10005996]
[1772556595732,3.11033052,1981.1,1980.2,3.10005996]
[1772556596924,3.11033052,1981.1,1980.1,0.2525]
[1772556597131,3.11033052,1981.1,1979.9,6.62]
[1772556597432,3.11033052,1980.9,1979.9,6.62]
[1772556597825,3.11033052,1980.9,1979.6,6.619]
[1772556598232,3.36273052,1980.9,1979.5,0.25257]
[1772556598622,3.11033052,1980.8,1979.4,0.00398616]
[1772556598829,3.11033052,1980.6,1979.4,0.00398616]
[1772556599030,3.11033052,1980.4,1979.4,0.00398616]
[1772556599732,3.11033052,1980.7,1979.7,0.25255]
[1772556599933,3.11033052,1980.7,1979.8,3.10005996]
[1772556600132,3.11033052,1981.3,1980.1,0.2525]
[1772556600426,3.11033052,1981.3,1980.3,3.35252996]
[1772556600832,3.11033052,1981.3,1980.5,3.35250996]
[1772556601027,0.00516217,1981.6,1980.9,3.35244996]
[1772556601224,3.11033052,1981.9,1981.2,3.10005996]
[1772556601430,3.11033052,1981.9,1981.1,0.25237]
[1772556601630,3.11033052,1981.9,1980.9,9.72478932]
[1772556602335,3.11564316,1981.9,1980.9,0.00572936]
[1772556602826,3.36792316,1981.9,1980.6,0.25243]
[1772556603024,3.11564316,1981.9,1980.6,3.35248996]
[1772556603226,3.11033052,1981.7,1980.6,3.35248996]
[1772556603433,3.11033052,1981.5,1980.3,9.71805996]
[1772556603628,3.11033052,1981.5,1980.5,3.35250996]
[1772556603832,3.11033052,1981.5,1980.5,3.35875895]
[1772556604037,3.11033052,1981.3,1980.5,0.25869899]
[1772556604333,3.11033052,1981.3,1980.5,0.00624899]
[1772556604632,3.11033052,1981.6,1980.6,3.35249996]
[1772556604831,3.11033052,1981.6,1980.5,0.00624899]
[1772556605740,3.11033052,1981.4,1980.5,0.00624899]
[1772556606231,3.11033052,1981.4,1980.1,6.86949]
[1772556606232,3.11033052,1981.2,1980.1,0.25249]
[1772556606434,3.11033052,1981.1,1980.1,3.35254996]
[1772556606630,9.72733052,1981.4,1980.5,3.35249996]
[1772556607032,3.11033052,1981.4,1980.5,3.35249996]
[1772556607237,3.11033052,1981.4,1980.5,3.35872017]
[1772556607435,3.11033052,1981.8,1980.9,0.25239]
[1772556607638,0.00531264,1981.9,1981.1,3.35242996]
[1772556608136,3.11564316,1981.9,1981.1,3.35242996]
[1772556608432,0.00531264,1981.9,1981.1,3.35242996]
[1772556608635,3.11564316,1981.9,1981.1,3.35242996]
[1772556608838,3.11564316,1981.9,1981.1,0.25237]
[1772556609032,3.11564316,1981.9,1980.9,3.10005996]
[1772556609633,3.11564316,1981.9,1981.0,3.35244996]
[1772556610035,3.11033052,1982.4,1981.4,3.35238996]
[1772556610335,3.11033052,1982.4,1981.8,0.25228]
[1772556610841,3.11033052,1982.7,1981.8,3.35233996]
[1772556611035,3.11033052,1983.5,1982.0,3.35231996]
[1772556611237,3.11033052,1983.3,1982.3,3.10005996]
[1772556611436,3.11643755,1983.5,1982.7,3.10005996]
[1772556611637,3.11643755,1983.5,1982.4,3.10005996]
[1772556611937,3.11033052,1983.4,1982.1,3.35229996]
[1772556612835,3.11033052,1983.2,1982.0,0.00606785]
[1772556613035,3.11033052,1983.0,1982.0,0.00606785]
[1772556613239,3.11033052,1982.8,1982.0,3.35837781]
[1772556613439,3.11033052,1983.4,1982.1,3.10005996]
[1772556613642,3.11033052,1983.2,1982.0,0.00606785]
[1772556613846,3.11033052,1983.0,1982.0,0.00606785]
[1772556614139,3.11033052,1982.8,1982.0,0.00606785]
[1772556614342,3.11033052,1983.1,1982.2,3.10005996]
[1772556614535,3.11033052,1983.1,1982.0,0.00606785]
[1772556615046,3.11033052,1982.9,1982.0,0.00606785]
[1772556615338,3.11033052,1982.7,1981.5,3.35236996]
[1772556615538,3.11033052,1982.5,1981.1,3.10005996]
[1772556615740,3.11033052,1983.1,1982.0,6.20563]
[1772556616045,0.00610703,1983.5,1982.5,3.10005996]
[1772556616236,0.00610703,1983.5,1982.5,3.10609288]
[1772556616632,3.11643755,1983.5,1982.6,0.25218]
[1772556616832,3.11033052,1983.4,1982.5,3.35828288]
[1772556617036,0.00610703,1983.5,1982.8,3.10005996]
[1772556617241,3.11033052,1983.7,1982.5,6.21003292]
[1772556617242,3.11033052,1984.0,1983.0,3.10005996]
[1772556617833,2.97165849,1984.3,1983.4,2.87561123]
[1772556618037,2.97165849,1984.6,1983.7,3.12765123]
[1772556618235,2.97521547,1984.6,1983.7,3.12765123]
[1772556618439,2.97521547,1984.6,1983.6,2.87561123]
[1772556618643,2.97521547,1984.6,1983.8,2.87561123]
[1772556619542,2.97521547,1984.6,1983.2,2.87561123]
[1772556619844,2.83366346,1984.4,1983.2,2.87561123]
[1772556620340,2.83366346,1984.5,1983.6,3.14012589]
[1772556620839,2.83366346,1984.5,1983.3,3.14012589]
[1772556621035,9.44566346,1984.4,1983.3,3.14012589]
[1772556621240,2.83366346,1984.4,1983.6,0.25205]
[1772556621738,2.83366346,1984.4,1983.6,3.39217589]
[1772556622145,2.83366346,1984.4,1983.3,3.14012589]
[1772556622347,2.83366346,1984.2,1983.3,3.14012589]
[1772556622646,2.83366346,1984.2,1983.1,3.39224589]
[1772556623043,2.83366346,1984.2,1982.6,0.25218]
[1772556623250,2.83366346,1984.0,1982.6,3.14012589]
[1772556623544,2.83366346,1983.6,1982.0,3.39237589]
[1772556623850,6.2004,1983.7,1982.0,3.39237589]
[1772556623851,2.83366346,1983.2,1982.0,3.39237589]
[1772556624049,2.83899916,1983.2,1981.7,3.14012589]
[1772556624349,2.83366346,1983.0,1981.7,3.14012589]
[1772556624943,2.83366346,1983.0,1981.7,3.14461805]
[1772556625145,2.83366346,1982.8,1981.7,3.14461805]
[1772556625350,3.08582346,1982.8,1981.7,0.00449216]
[1772556625542,2.83366346,1982.5,1981.0,3.39250589]
[1772556625741,2.83366346,1982.3,1981.0,3.14012589]
[1772556625947,2.83366346,1982.1,1980.5,3.14012589]
[1772556626548,2.83366346,1982.1,1980.5,3.14572966]
[1772556627144,2.83366346,1982.1,1980.9,3.14012589]
[1772556627351,2.83366346,1982.1,1981.1,3.14012589]
[1772556627546,9.44366346,1982.1,1981.1,3.14012589]
[1772556627749,2.83366346,1982.0,1981.0,0.25239]
[1772556628050,2.83366346,1982.0,1980.5,3.14572966]
[1772556628951,3.08593346,1981.9,1980.5,0.00560377]
[1772556629247,2.83366346,1981.7,1980.5,3.14572966]
[1772556629448,2.83762424,1981.7,1980.5,0.00560377]
[1772556630044,2.83366346,1981.5,1980.5,0.00560377]
[1772556630244,0.00396078,1981.7,1979.9,3.39265589]
[1772556630245,2.83366346,1981.3,1979.9,3.39265589]
[1772556630443,2.83366346,1981.1,1979.9,3.39265589]
[1772556630653,2.83366346,1981.1,1979.5,3.14012589]
[1772556630847,6.611,1981.2,1979.5,3.14012589]
[1772556630848,2.83366346,1980.9,1979.5,3.14012589]
[1772556631052,2.83366346,1980.7,1979.4,0.25259]
[1772556631256,2.83366346,1980.5,1979.4,0.25859149]
[1772556631457,6.611,1980.4,1979.7,3.14012589]
[1772556631756,2.83366346,1980.4,1979.4,3.14612738]
[1772556631946,2.83366346,1980.4,1979.4,0.00600149]
[1772556632148,0.2524,1980.9,1979.4,0.00600149]
[1772556632149,2.83366346,1980.2,1979.4,0.00600149]
[1772556632352,2.83366346,1980.0,1979.4,0.00600149]
[1772556632555,2.83366346,1980.0,1978.4,9.60973589]
[1772556632753,0.00364006,1980.2,1979.0,3.39276589]
[1772556632754,2.83366346,1979.8,1979.0,3.39276589]
[1772556632946,2.83366346,1980.1,1979.0,3.39276589]
[1772556633257,0.00364006,1980.2,1978.7,3.14012589]
[1772556633258,2.83366346,1979.9,1978.7,3.14012589]
[1772556633458,2.83366346,1979.7,1978.7,0.00400423]
[1772556634157,6.613,1979.6,1978.3,3.14012589]
[1772556634358,2.83366346,1979.5,1978.4,3.39284589]
[1772556634759,2.83366346,1979.3,1978.4,3.39284589]
[1772556635055,2.83366346,1979.1,1978.4,0.00361627]
[1772556635251,2.83366346,1978.9,1978.4,0.00361627]
[1772556635450,2.83366346,1979.4,1978.4,3.14374216]
[1772556635652,0.00364006,1980.2,1978.4,3.14374216]
[1772556635653,2.83366346,1980.1,1978.6,3.14012589]
[1772556635853,2.83366346,1979.8,1978.8,3.14012589]
[1772556636457,2.83366346,1979.8,1978.6,3.14012589]
[1772556636755,2.83366346,1979.8,1978.7,3.14012589]
[1772556637346,2.83366346,1979.8,1978.6,3.39280589]
[1772556637659,2.83366346,1979.6,1978.6,3.39280589]
[1772556638057,2.83366346,1979.6,1978.7,3.14012589]
[1772556638253,2.83366346,1979.6,1978.6,0.25268]
[1772556638556,2.83366346,1979.4,1978.4,0.00361627]
[1772556638752,0.25253,1979.9,1978.7,3.14012589]
[1772556638753,2.83366346,1979.9,1978.7,3.14012589]
[1772556639250,2.83366346,1979.8,1978.7,3.14012589]
[1772556639650,6.617,1980.0,1978.9,3.14012589]
[1772556639846,2.83366346,1979.9,1978.9,3.14012589]
[1772556640051,9.45066346,1979.9,1978.9,3.14012589]
[1772556640352,2.83366346,1979.8,1978.8,0.25267]
[1772556640552,6.617,1979.8,1979.0,3.14012589]
[1772556640753,2.83366346,1980.1,1979.0,3.14012589]
[1772556640955,6.617,1980.0,1979.0,3.14012589]
[1772556641259,6.617,1980.0,1978.5,6.21633]
[1772556641260,2.83366346,1979.9,1978.8,3.14012589]
[1772556641958,2.83366346,1980.1,1979.2,3.14012589]
[1772556642257,2.83366346,1980.1,1978.7,3.14012589]
[1772556643058,2.83366346,1980.1,1978.4,6.22054627]
[1772556643059,2.83366346,1979.9,1978.9,3.14012589]
[1772556643462,6.618,1979.9,1979.0,3.39276589]
[1772556643957,9.45166346,1980.0,1979.0,3.39276589]
[1772556644360,2.83366346,1979.9,1978.4,6.47327627]
[1772556644557,2.83730352,1980.2,1979.3,3.14012589]
[1772556644753,9.45530352,1980.2,1979.3,3.14012589]
[1772556644959,2.83366346,1980.1,1979.2,0.25261]
[1772556645266,2.83366346,1980.1,1979.2,3.39273589]
[1772556645757,2.83366346,1980.1,1978.7,3.14012589]
[1772556645958,2.83366346,1979.9,1978.9,3.14012589]
[1772556646263,2.83366346,1979.6,1978.4,0.00361627]
[1772556646557,0.25255,1979.7,1978.4,3.14374216]
[1772556646558,2.83366346,1979.4,1978.4,3.14374216]
[1772556646958,9.45266346,1979.3,1978.4,3.14374216]
[1772556647262,2.83366346,1979.2,1978.4,0.00361627]
[1772556647660,2.83366346,1979.1,1978.4,0.00361627]
[1772556648362,9.5031046,1979.0,1978.4,0.00361627]
[1772556648562,2.8841046,1978.9,1978.4,0.00361627]
[1772556648755,0.25255,1979.7,1978.4,0.00361627]
[1772556648756,2.8841046,1978.8,1978.4,0.00361627]
[1772556648960,6.619,1979.1,1978.4,3.00463638]
[1772556649260,2.8841046,1979.4,1978.4,3.25734638]
[1772556649858,2.8841046,1979.4,1978.5,3.00102011]
[1772556650053,0.00486429,1979.4,1978.8,3.25369011]
[1772556650256,2.8841046,1980.6,1978.8,3.25369011]
[1772556650457,2.8841046,1980.4,1978.8,3.25369011]
[1772556650857,2.8841046,1980.2,1978.8,0.25267]
[1772556651059,2.8841046,1980.0,1978.8,3.00102011]
[1772556651259,2.88972164,1980.0,1979.2,3.00102011]
[1772556651462,0.00561704,1980.0,1979.2,3.00102011]
[1772556651664,0.00561704,1980.0,1979.4,3.00102011]
[1772556651864,7.04e-06,1980.0,1979.6,3.00102011]
[1772556652257,7.04e-06,1980.0,1979.8,3.00102011]
[1772556652660,7.04e-06,1980.0,1979.7,0.25255]
[1772556652860,7.04e-06,1980.0,1979.7,3.25712405]
[1772556653059,2.8841046,1981.0,1980.0,3.00102011]
[1772556653875,2.8841046,1981.0,1979.9,6.21223]
[1772556653876,2.8841046,1981.0,1980.2,3.00102011]
[1772556654065,2.8841046,1981.3,1980.5,3.25347011]
[1772556654763,2.8841046,1981.9,1980.9,3.25342011]
[1772556655159,2.89009024,1981.9,1980.9,3.25342011]
[1772556656160,6.20288,1982.9,1980.4,12.83062]
[1772556656161,2.8841046,1982.9,1981.8,3.00102011]
[1772556656360,2.8841046,1982.9,1982.0,9.45890011]
[1772556656566,9.5031046,1983.3,1982.3,3.00102011]
[1772556656765,2.8841046,1983.2,1982.3,3.00102011]
[1772556656966,2.8841046,1983.2,1982.2,0.25223]
[1772556657164,2.88776159,1983.2,1982.2,3.25836663]
[1772556657366,2.88776159,1983.2,1982.2,0.00511652]
[1772556658265,2.88776159,1983.2,1982.2,3.00613663]
[1772556658461,2.88776159,1983.2,1981.3,0.25234]
[1772556658667,2.8841046,1982.8,1981.3,3.25336011]
[1772556658880,2.8841046,1982.6,1981.3,3.00102011]
[1772556659170,2.8841046,1982.6,1980.7,3.00102011]
[1772556659374,6.45507,1982.9,1980.7,3.00102011]
[1772556659375,2.8841046,1982.4,1980.7,3.00102011]
[1772556659571,2.8841046,1982.4,1980.7,3.00579086]
[1772556659773,2.8841046,1982.2,1980.9,3.00102011]
[1772556659969,2.8841046,1982.0,1980.9,3.00102011]
[1772556660166,2.8841046,1982.0,1981.0,0.25239]
[1772556660368,2.8841046,1982.5,1981.5,3.00102011]
[1772556660974,2.8841046,1983.0,1982.0,9.20662011]
[1772556661267,2.8841046,1983.0,1981.8,3.00102011]
[1772556661464,2.8841046,1983.0,1981.5,3.00102011]
[1772556662167,2.8841046,1982.7,1981.1,3.00102011]
[1772556662372,2.8841046,1982.5,1981.1,3.00102011]
[1772556662569,2.8841046,1982.5,1981.2,3.25338011]
[1772556662873,2.8841046,1982.4,1981.3,0.25235]
[1772556663063,2.8841046,1982.3,1981.4,2.97163787]
[1772556663869,2.8841046,1982.3,1981.3,0.25235]
[1772556664062,2.8841046,1982.3,1981.3,3.21844956]
[1772556664875,2.8841046,1982.3,1981.3,0.25235]
[1772556665175,2.8841046,1982.3,1980.9,2.94949943]
[1772556665571,2.8841046,1982.3,1981.4,3.19621588]
[1772556665971,2.8841046,1982.3,1981.4,0.25233]
[1772556666174,2.8841046,1982.9,1981.6,3.1962915]
[1772556666367,0.25213,1983.0,1981.6,3.1962915]
[1772556666368,2.8841046,1982.5,1981.6,3.1962915]
[1772556666675,2.8841046,1982.5,1981.6,0.25231]
[1772556667079,0.00365699,1983.2,1981.6,0.25231]
[1772556667080,2.8841046,1982.8,1981.9,2.93697578]
[1772556667875,2.8841046,1983.0,1982.0,3.18361401]
[1772556668077,2.8841046,1983.0,1982.2,9.38866096]
[1772556668274,2.88776159,1983.2,1982.4,3.18366096]
[1772556668579,0.00365699,1983.2,1982.5,2.92582947]
[1772556668777,0.00365699,1983.2,1982.6,0.25218]
[1772556668980,2.8841046,1983.8,1983.0,0.25213]
[1772556669676,2.8841046,1983.8,1982.5,3.16974638]
[1772556669876,2.8841046,1983.8,1982.5,0.25219]
[1772556670080,2.8841046,1983.6,1982.2,0.00462633]
[1772556670286,2.8841046,1983.4,1982.2,0.00462633]
[1772556670581,2.8841046,1983.2,1982.2,0.00462633]
[1772556670781,2.8841046,1983.0,1981.6,2.91231695]
[1772556670981,0.25212,1983.1,1981.5,0.25232]
[1772556670982,2.8841046,1982.8,1981.5,0.25232]
[1772556671178,2.8841046,1982.6,1981.5,0.25232]
[1772556671477,2.8841046,1982.6,1981.0,3.15116387]
[1772556671679,2.8841046,1982.6,1981.2,3.15114387]
[1772556671880,2.8841046,1982.6,1981.2,0.25617588]
[1772556672482,6.613,1982.7,1981.2,0.00381588]
[1772556672483,2.8841046,1982.2,1981.2,0.00381588]
[1772556672778,2.8841046,1982.2,1980.3,2.89367018]
[1772556672779,2.8841046,1981.8,1980.6,0.25244]
[1772556672978,2.8841046,1981.6,1980.6,0.25244]
[1772556673180,2.8841046,1981.5,1980.6,0.25244]
[1772556673582,2.8841046,1982.0,1980.9,2.98237586]
[1772556673883,2.8841046,1982.0,1981.0,0.25239]
[1772556674081,2.8841046,1981.9,1981.0,0.25239]
[1772556674287,2.88899301,1982.2,1981.2,3.22947143]
[1772556674490,2.88899301,1982.2,1981.2,0.25236]
[1772556674882,2.88899301,1982.2,1980.6,0.25827666]
[1772556675179,2.88899301,1982.2,1980.6,3.25929677]
[1772556675886,2.8841046,1982.0,1980.6,3.25929677]
[1772556676181,2.8841046,1981.9,1980.8,9.45970879]
[1772556676386,2.8841046,1981.9,1981.0,0.25239]
[1772556676992,2.8841046,1981.9,1980.6,2.99818925]
[1772556677292,2.8841046,1981.9,1980.6,0.00584666]
[1772556677586,2.8841046,1981.9,1980.7,0.25242]
[1772556677790,2.8841046,1981.7,1980.7,0.25242]
[1772556678489,6.613,1981.8,1980.6,0.00584666]
[1772556678490,2.85608776,1981.5,1980.6,0.00584666]
[1772556678684,2.85608776,1981.3,1980.2,0.25248]
[1772556678886,2.85608776,1981.1,1980.2,3.15182995]
[1772556679279,2.85608776,1981.1,1979.9,2.89934995]
[1772556679486,2.80230011,1980.9,1979.7,3.03136108]
[1772556679684,2.80230011,1980.7,1979.7,3.03571272]
[1772556679893,2.8071866,1980.7,1979.7,0.25690164]
[1772556680089,2.80230011,1980.5,1979.7,0.25690164]
[1772556680889,2.8071866,1980.7,1979.7,3.03571272]
[1772556681291,2.8071866,1980.7,1979.7,0.25690164]
[1772556681788,0.00488649,1980.7,1980.3,3.03128108]
[1772556681992,2.80230011,1981.0,1980.3,3.03128108]
[1772556682292,2.80230011,1981.0,1980.3,0.25247]
[1772556682890,2.80790544,1981.0,1980.3,0.25247]
[1772556683283,2.80790544,1981.0,1979.8,0.25254]
[1772556683484,2.80790544,1981.0,1979.7,0.00435164]
[1772556684389,2.80790544,1981.0,1979.2,6.86661]
[1772556684390,2.80230011,1980.4,1978.9,0.25265]
[1772556684693,3.93088901,1980.5,1978.9,0.25265]
[1772556684694,2.80230011,1980.2,1978.9,0.25265]
[1772556685188,2.80230011,1980.8,1979.6,2.77881108]